[Event "Mistrovství Čech mládeže 2023 - HD16"]
[Site "Harrachov, Czech Republic"]
[Date "2023.10.26"]
[Round "7.7"]
[White "Pressler, Tobias"]
[Black "Martinkovič, Adam"]
[Result "1-0"]
[TimeControl "90m + 30s"]
[WhiteElo "1965"]
[BlackElo "1680"]

1. f4 {[%clk 01:30:34]} {[%emt 00:00:25]} d5 {[%clk 01:29:59]} {[%emt
00:01:02]} 2. Nf3 {[%clk 01:30:26]} {[%emt 00:00:38]} c5 {[%clk 01:29:51]}
{[%emt 00:00:38]} 3. e3 {[%clk 01:30:32]} {[%emt 00:00:23]} Nc6 {[%clk
01:29:50]} {[%emt 00:00:32]} 4. Bb5 {[%clk 01:28:11]} {[%emt 00:02:51]} Nf6
{[%clk 01:29:03]} {[%emt 00:01:16]} 5. O-O {[%clk 01:27:36]} {[%emt 00:01:05]}
Bd7 {[%clk 01:28:46]} {[%emt 00:00:48]} 6. b3 {[%clk 01:27:24]} {[%emt
00:00:43]} a6 {[%clk 01:28:53]} {[%emt 00:00:23]} 7. Bxc6 {[%clk 01:27:19]}
{[%emt 00:00:34]} Bxc6 {[%clk 01:29:15]} {[%emt 00:00:08]} 8. Bb2 {[%clk
01:27:44]} {[%emt 00:00:04]} e6 {[%clk 01:29:30]} {[%emt 00:00:16]} 9. d3
{[%clk 01:27:35]} {[%emt 00:00:39]} Bd6 {[%clk 01:27:12]} {[%emt 00:02:48]} 10.
Ne5 {[%clk 01:27:51]} {[%emt 00:00:14]} Qc7 {[%clk 01:25:59]} {[%emt 00:01:43]}
11. Nd2 {[%clk 01:26:58]} {[%emt 00:01:23]} h6 {[%clk 01:23:02]} {[%emt
00:03:28]} 12. Qe2 {[%clk 01:26:36]} {[%emt 00:00:52]} O-O-O {[%clk 01:13:29]}
{[%emt 00:10:04]} 13. Rac1 {[%clk 01:11:58]} {[%emt 00:15:07]} Kb8 {[%clk
01:08:18]} {[%emt 00:05:42]} 14. c4 {[%clk 01:10:49]} {[%emt 00:01:39]} Ka8
{[%clk 01:06:48]} {[%emt 00:02:00]} 15. a3 {[%clk 01:09:00]} {[%emt 00:02:19]}
Bxe5 {[%clk 01:05:47]} {[%emt 00:01:31]} 16. fxe5 {[%clk 01:06:30]} {[%emt
00:03:00]} Ne8 {[%clk 01:05:08]} {[%emt 00:01:08]} 17. b4 {[%clk 01:06:25]}
{[%emt 00:00:36]} cxb4 {[%clk 00:56:32]} {[%emt 00:09:06]} 18. axb4 {[%clk
01:05:27]} {[%emt 00:01:28]} Qd7 {[%clk 00:56:27]} {[%emt 00:00:33]} 19. b5
{[%clk 01:00:28]} {[%emt 00:05:31]} axb5 {[%clk 00:56:21]} {[%emt 00:00:37]} 20.
Ra1+ {[%clk 01:00:53]} {[%emt 00:00:04]} Kb8 {[%clk 00:56:36]} {[%emt
00:00:16]} 21. Bd4 {[%clk 01:00:59]} {[%emt 00:00:24]} Nc7 {[%clk 00:51:51]}
{[%emt 00:05:14]} 22. cxb5 {[%clk 00:52:42]} {[%emt 00:08:47]} Bxb5 {[%clk
00:50:26]} {[%emt 00:01:55]} 23. Nb3 {[%clk 00:52:52]} {[%emt 00:00:20]} Na6
{[%clk 00:49:55]} {[%emt 00:01:01]} 24. Nc5 {[%clk 00:51:30]} {[%emt 00:01:52]}
Nxc5 {[%clk 00:48:55]} {[%emt 00:01:30]} 25. Bxc5 {[%clk 00:51:55]} {[%emt
00:00:05]} Ba6 {[%clk 00:49:05]} {[%emt 00:00:21]} 26. Rfb1 {[%clk 00:51:26]}
{[%emt 00:00:59]} Qc6 {[%clk 00:48:55]} {[%emt 00:00:40]} 27. Bd4 {[%clk
00:50:18]} {[%emt 00:01:39]} Rc8 {[%clk 00:48:19]} {[%emt 00:01:05]} 28. Rb6
{[%clk 00:50:21]} {[%emt 00:00:27]} Bxd3 {[%clk 00:42:08]} {[%emt 00:06:42]} 29.
Qxd3 {[%clk 00:49:45]} {[%emt 00:01:06]} Qc4 {[%clk 00:41:19]} {[%emt
00:01:19]} 30. Qa3 {[%clk 00:49:52]} {[%emt 00:00:23]} Qe2 {[%clk 00:38:38]}
{[%emt 00:03:10]} 31. Qa7+ {[%clk 00:49:47]} {[%emt 00:00:36]} Kc7 {[%clk
00:39:01]} {[%emt 00:00:07]} 32. Rxb7+ {[%clk 00:50:11]} {[%emt 00:00:06]} Kd8
{[%clk 00:39:07]} {[%emt 00:00:24]} 33. Rd7+ {[%clk 00:50:36]} {[%emt
00:00:05]} Ke8 {[%clk 00:39:29]} {[%emt 00:00:08]} 34. Re7+ {[%clk 00:51:01]}
{[%emt 00:00:04]} Kf8 {[%clk 00:39:54]} {[%emt 00:00:06]} 35. Rxf7+ {[%clk
00:51:28]} {[%emt 00:00:04]} Kg8 {[%clk 00:40:18]} {[%emt 00:00:05]} 36. Rxg7+
{[%clk 00:51:54]} {[%emt 00:00:04]} 1-0

[Event "Mistrovství Čech mládeže 2023 - HD16"]
[Site "Harrachov, Czech Republic"]
[Date "2023.10.26"]
[Round "7.8"]
[White "Novotný, Dominik"]
[Black "Dudková, Josefína"]
[Result "1/2-1/2"]
[TimeControl "90m + 30s"]
[WhiteElo "1929"]
[BlackElo "1587"]

1. e4 {[%clk 01:30:52]} {[%emt 00:00:07]} g6 {[%clk 01:30:46]} {[%emt
00:00:14]} 2. d4 {[%clk 01:30:45]} {[%emt 00:00:38]} Bg7 {[%clk 01:31:06]}
{[%emt 00:00:10]} 3. Bc4 {[%clk 01:30:11]} {[%emt 00:01:04]} c5 {[%clk
01:30:11]} {[%emt 00:01:25]} 4. c3 {[%clk 01:29:53]} {[%emt 00:00:48]} cxd4
{[%clk 01:28:07]} {[%emt 00:02:34]} 5. cxd4 {[%clk 01:30:10]} {[%emt 00:00:13]}
d6 {[%clk 01:26:20]} {[%emt 00:02:17]} 6. f4 {[%clk 01:26:25]} {[%emt
00:04:14]} Nc6 {[%clk 01:22:11]} {[%emt 00:04:39]} 7. d5 {[%clk 01:14:44]}
{[%emt 00:12:11]} b5 {[%clk 01:08:10]} {[%emt 00:14:31]} 8. Bf1 {[%clk
00:56:51]} {[%emt 00:18:23]} Nd4 {[%clk 01:07:14]} {[%emt 00:01:27]} 9. Be3
{[%clk 00:38:48]} {[%emt 00:18:32]} Bg4 {[%clk 00:29:48]} {[%emt 00:37:56]} 10.
Bxd4 {[%clk 00:20:55]} {[%emt 00:18:23]} Bxd1 {[%clk 00:28:23]} {[%emt
00:01:55]} 11. Bxg7 {[%clk 00:20:25]} {[%emt 00:01:00]} Bg4 {[%clk 00:28:09]}
{[%emt 00:00:43]} 12. f5 {[%clk 00:19:30]} {[%emt 00:01:25]} Qb6 {[%clk
00:27:10]} {[%emt 00:01:29]} 13. Bxh8 {[%clk 00:17:49]} {[%emt 00:02:11]} Qe3+
{[%clk 00:23:46]} {[%emt 00:03:55]} 14. Ne2 {[%clk 00:17:47]} {[%emt 00:00:32]}
Rc8 {[%clk 00:20:30]} {[%emt 00:03:45]} 15. Nbc3 {[%clk 00:16:51]} {[%emt
00:01:27]} b4 {[%clk 00:20:07]} {[%emt 00:00:53]} 16. Bd4 {[%clk 00:16:11]}
{[%emt 00:01:09]} Qh6 {[%clk 00:19:49]} {[%emt 00:00:47]} 17. Nd1 {[%clk
00:14:20]} {[%emt 00:02:22]} gxf5 {[%clk 00:14:08]} {[%emt 00:06:11]} 18. Ne3
{[%clk 00:13:52]} {[%emt 00:00:58]} e5 {[%clk 00:10:08]} {[%emt 00:04:30]} 19.
dxe6 {[%clk 00:12:18]} {[%emt 00:02:03]} fxe6 {[%clk 00:10:17]} {[%emt
00:00:21]} 20. exf5 {[%clk 00:12:08]} {[%emt 00:00:40]} Bxe2 {[%clk 00:09:07]}
{[%emt 00:01:39]} 21. Kxe2 {[%clk 00:11:27]} {[%emt 00:01:12]} exf5 {[%clk
00:08:35]} {[%emt 00:01:02]} 22. g3 {[%clk 00:11:18]} {[%emt 00:00:39]} Qe6
{[%clk 00:08:27]} {[%emt 00:00:39]} 23. Bg2 {[%clk 00:11:12]} {[%emt 00:00:36]}
Rc2+ {[%clk 00:06:06]} {[%emt 00:02:51]} 24. Kf1 {[%clk 00:08:47]} {[%emt
00:02:55]} Rxg2 {[%clk 00:03:53]} {[%emt 00:02:43]} 25. Re1 {[%clk 00:08:25]}
{[%emt 00:00:52]} Kd7 {[%clk 00:03:35]} {[%emt 00:00:49]} 26. Kxg2 {[%clk
00:07:51]} {[%emt 00:01:03]} Qe4+ {[%clk 00:03:56]} {[%emt 00:00:09]} 27. Kh3
{[%clk 00:07:54]} {[%emt 00:00:27]} Qxd4 {[%clk 00:04:12]} {[%emt 00:00:15]} 28.
Nxf5 {[%clk 00:07:49]} {[%emt 00:00:34]} Qxb2 {[%clk 00:03:24]} 1/2-1/2

[Event "Mistrovství Čech mládeže 2023 - HD16"]
[Site "Harrachov, Czech Republic"]
[Date "2023.10.26"]
[Round "7.10"]
[White "Langmaier, Michal"]
[Black "Sadil, Antonín"]
[Result "1/2-1/2"]
[TimeControl "90m + 30s"]
[WhiteElo "1697"]
[BlackElo "1792"]

1. d4 {[%clk 01:30:55]} {[%emt 00:00:05]} Nf6 {[%clk 01:30:19]} {[%emt
00:00:42]} 2. Nf3 {[%clk 01:30:58]} {[%emt 00:00:26]} g6 {[%clk 01:30:26]}
{[%emt 00:00:23]} 3. c4 {[%clk 01:31:20]} {[%emt 00:00:08]} d5 {[%clk
01:30:35]} {[%emt 00:00:21]} 4. cxd5 {[%clk 01:29:56]} {[%emt 00:01:54]} Nxd5
{[%clk 01:30:09]} {[%emt 00:00:56]} 5. e4 {[%clk 01:27:21]} {[%emt 00:03:04]}
Nb6 {[%clk 01:30:30]} {[%emt 00:00:09]} 6. h3 {[%clk 01:24:25]} {[%emt
00:03:25]} Bg7 {[%clk 01:29:31]} {[%emt 00:01:30]} 7. Nc3 {[%clk 01:23:33]}
{[%emt 00:01:21]} O-O {[%clk 01:29:13]} {[%emt 00:00:49]} 8. Be2 {[%clk
01:21:47]} {[%emt 00:02:17]} c5 {[%clk 01:28:55]} {[%emt 00:00:48]} 9. Be3
{[%clk 01:18:21]} {[%emt 00:03:56]} cxd4 {[%clk 01:27:13]} {[%emt 00:02:12]} 10.
Bxd4 {[%clk 01:17:09]} {[%emt 00:01:41]} a6 {[%clk 01:24:46]} {[%emt 00:02:58]}
11. O-O {[%clk 01:15:47]} {[%emt 00:01:51]} Nc6 {[%clk 01:24:05]} {[%emt
00:01:11]} 12. Bxg7 {[%clk 01:15:16]} {[%emt 00:01:01]} Kxg7 {[%clk 01:24:24]}
{[%emt 00:00:11]} 13. Qxd8 {[%clk 01:04:14]} {[%emt 00:11:32]} Rxd8 {[%clk
01:24:41]} {[%emt 00:00:13]} 14. Rfd1 {[%clk 01:04:24]} {[%emt 00:00:19]} Be6
{[%clk 01:24:20]} {[%emt 00:00:51]} 15. Rac1 {[%clk 01:03:46]} {[%emt
00:01:08]} Nb4 {[%clk 01:20:35]} {[%emt 00:04:15]} 16. a3 {[%clk 01:00:00]}
{[%emt 00:04:16]} Nc6 {[%clk 01:19:14]} {[%emt 00:01:52]} 17. Rxd8 {[%clk
00:54:09]} {[%emt 00:06:21]} Rxd8 {[%clk 01:19:42]} {[%emt 00:00:02]} 18. Rd1
{[%clk 00:54:31]} {[%emt 00:00:07]} Nc4 {[%clk 01:17:51]} {[%emt 00:02:22]} 19.
Rxd8 {[%clk 00:52:12]} {[%emt 00:02:49]} Nxd8 {[%clk 01:18:19]} {[%emt
00:00:02]} 20. Bxc4 {[%clk 00:52:28]} {[%emt 00:00:14]} Bxc4 {[%clk 01:18:25]}
{[%emt 00:00:24]} 21. Nd2 {[%clk 00:52:55]} {[%emt 00:00:03]} Be6 {[%clk
01:17:34]} {[%emt 00:01:22]} 22. f4 {[%clk 00:52:04]} {[%emt 00:01:21]} Nc6
{[%clk 01:14:16]} {[%emt 00:03:47]} 23. Kf2 {[%clk 00:48:29]} {[%emt 00:04:05]}
f6 {[%clk 01:06:56]} {[%emt 00:07:51]} 24. Na4 {[%clk 00:44:56]} {[%emt
00:04:03]} Nd8 {[%clk 01:03:45]} {[%emt 00:03:41]} 25. Nc5 {[%clk 00:43:13]}
{[%emt 00:02:13]} Bc8 {[%clk 01:03:59]} {[%emt 00:00:15]} 26. Ke3 {[%clk
00:38:53]} {[%emt 00:04:50]} Ne6 {[%clk 01:03:45]} {[%emt 00:00:44]} 27. Nxe6+
{[%clk 00:36:54]} {[%emt 00:02:29]} Bxe6 {[%clk 01:04:14]} {[%emt 00:00:01]} 28.
Kd4 {[%clk 00:37:06]} {[%emt 00:00:17]} Bd7 {[%clk 01:02:10]} {[%emt 00:02:33]}
29. Nb3 {[%clk 00:34:55]} {[%emt 00:02:42]} b6 {[%clk 00:59:12]} {[%emt
00:03:29]} 30. Kd5 {[%clk 00:33:46]} {[%emt 00:01:39]} Bb5 {[%clk 00:59:06]}
{[%emt 00:00:36]} 31. g3 {[%clk 00:31:14]} {[%emt 00:03:02]} Kf7 {[%clk
00:56:22]} {[%emt 00:03:14]} 32. Nd4 {[%clk 00:29:34]} {[%emt 00:02:10]} Bf1
{[%clk 00:55:03]} {[%emt 00:01:49]} 33. Kc6 {[%clk 00:27:35]} {[%emt 00:02:30]}
Bxh3 {[%clk 00:54:52]} {[%emt 00:00:40]} 34. Kxb6 {[%clk 00:27:58]} {[%emt
00:00:07]} Bf1 {[%clk 00:55:00]} {[%emt 00:00:21]} 35. b4 {[%clk 00:18:47]}
{[%emt 00:09:40]} h5 {[%clk 00:55:20]} {[%emt 00:00:11]} 36. a4 {[%clk
00:16:22]} {[%emt 00:02:56]} g5 {[%clk 00:55:07]} {[%emt 00:00:43]} 37. fxg5
{[%clk 00:15:52]} {[%emt 00:00:59]} fxg5 {[%clk 00:55:21]} {[%emt 00:00:14]} 38.
b5 {[%clk 00:15:47]} {[%emt 00:00:37]} axb5 {[%clk 00:55:42]} {[%emt 00:00:10]}
39. axb5 {[%clk 00:15:12]} {[%emt 00:01:04]} h4 {[%clk 00:55:51]} {[%emt
00:00:20]} 40. gxh4 {[%clk 00:14:37]} {[%emt 00:01:06]} gxh4 {[%clk 00:54:46]}
{[%emt 00:01:36]} 41. Kc7 {[%clk 00:13:27]} {[%emt 00:01:40]} Bxb5 {[%clk
00:53:54]} {[%emt 00:01:22]} 42. Nf3 {[%clk 00:13:43]} {[%emt 00:00:13]} h3
{[%clk 00:53:38]} {[%emt 00:00:47]} 43. Ng5 {[%clk 00:14:09]} {[%emt 00:00:04]}
Kf6 {[%clk 00:53:38]} {[%emt 00:00:30]} 44. Nxh3 {[%clk 00:14:34]} {[%emt
00:00:06]} Ke5 {[%clk 00:52:11]} {[%emt 00:01:56]} 45. Kd8 {[%clk 00:14:07]}
{[%emt 00:00:57]} Kf6 {[%clk 00:50:51]} {[%emt 00:01:49]} 46. e5+ {[%clk
00:14:24]} {[%emt 00:00:14]} Kxe5 {[%clk 00:50:59]} {[%emt 00:00:22]} 47. Kxe7
{[%clk 00:14:50]} {[%emt 00:00:04]} 1/2-1/2

[Event "Mistrovství Čech mládeže 2023 - HD16"]
[Site "Harrachov, Czech Republic"]
[Date "2023.10.26"]
[Round "7.11"]
[White "Vlček, Vojtěch"]
[Black "Mikhno, Artem"]
[Result "1-0"]
[TimeControl "90m + 30s"]
[WhiteElo "1661"]
[BlackElo "1781"]

1. d4 {[%clk 01:30:39]} {[%emt 00:00:20]} d5 {[%clk 01:27:42]} {[%emt
00:03:19]} 2. c4 {[%clk 01:30:59]} {[%emt 00:00:10]} c6 {[%clk 01:27:13]}
{[%emt 00:00:59]} 3. Nf3 {[%clk 01:31:13]} {[%emt 00:00:15]} Nf6 {[%clk
01:27:10]} {[%emt 00:00:33]} 4. Nc3 {[%clk 01:30:49]} {[%emt 00:00:54]} Bf5
{[%clk 01:24:33]} {[%emt 00:03:07]} 5. cxd5 {[%clk 01:31:10]} {[%emt 00:00:09]}
Nxd5 {[%clk 01:24:48]} {[%emt 00:00:16]} 6. Qb3 {[%clk 01:24:54]} {[%emt
00:06:42]} Nxc3 {[%clk 01:21:44]} {[%emt 00:03:37]} 7. bxc3 {[%clk 01:21:33]}
{[%emt 00:03:50]} Qb6 {[%clk 01:21:26]} {[%emt 00:00:48]} 8. Bf4 {[%clk
01:20:14]} {[%emt 00:01:49]} Nd7 {[%clk 01:21:33]} {[%emt 00:00:24]} 9. e3
{[%clk 01:20:15]} {[%emt 00:00:28]} e6 {[%clk 01:21:23]} {[%emt 00:00:40]} 10.
Nh4 {[%clk 01:00:57]} {[%emt 00:19:47]} Bg6 {[%clk 01:19:21]} {[%emt 00:02:34]}
11. Nxg6 {[%clk 00:59:11]} {[%emt 00:02:15]} hxg6 {[%clk 01:19:41]} {[%emt
00:00:10]} 12. Bd3 {[%clk 00:55:25]} {[%emt 00:04:12]} Be7 {[%clk 01:19:04]}
{[%emt 00:01:10]} 13. O-O {[%clk 00:50:32]} {[%emt 00:05:23]} Qxb3 {[%clk
01:15:37]} {[%emt 00:03:58]} 14. axb3 {[%clk 00:50:44]} {[%emt 00:00:18]} a6
{[%clk 01:16:05]} {[%emt 00:00:01]} 15. c4 {[%clk 00:48:28]} {[%emt 00:02:47]}
g5 {[%clk 01:14:37]} {[%emt 00:01:58]} 16. Bg3 {[%clk 00:48:39]} {[%emt
00:00:18]} Bf6 {[%clk 01:14:46]} {[%emt 00:00:22]} 17. Rab1 {[%clk 00:48:32]}
{[%emt 00:00:37]} c5 {[%clk 01:12:41]} {[%emt 00:02:35]} 18. Rfd1 {[%clk
00:47:01]} {[%emt 00:02:00]} cxd4 {[%clk 01:12:37]} {[%emt 00:00:34]} 19. exd4
{[%clk 00:47:27]} {[%emt 00:00:04]} Bxd4 {[%clk 01:08:06]} {[%emt 00:05:01]} 20.
Be4 {[%clk 00:47:52]} {[%emt 00:00:05]} e5 {[%clk 01:07:16]} {[%emt 00:01:21]}
21. Bxb7 {[%clk 00:47:25]} {[%emt 00:00:57]} Ra7 {[%clk 01:07:42]} {[%emt
00:00:05]} 22. Bc6 {[%clk 00:47:47]} {[%emt 00:00:06]} a5 {[%clk 01:07:30]}
{[%emt 00:00:43]} 23. Rd2 {[%clk 00:28:35]} {[%emt 00:19:42]} f6 {[%clk
01:07:11]} {[%emt 00:00:49]} 24. Ra2 {[%clk 00:25:40]} {[%emt 00:03:23]} Ke7
{[%clk 01:04:29]} {[%emt 00:03:15]} 25. Kf1 {[%clk 00:15:40]} {[%emt 00:10:29]}
Rb8 {[%clk 01:04:11]} {[%emt 00:00:48]} 26. f3 {[%clk 00:14:52]} {[%emt
00:01:19]} Rb4 {[%clk 01:01:21]} {[%emt 00:03:20]} 27. Be1 {[%clk 00:14:12]}
{[%emt 00:01:10]} Rb6 {[%clk 00:59:26]} {[%emt 00:02:26]} 28. Bxd7 {[%clk
00:12:26]} {[%emt 00:02:16]} Kxd7 {[%clk 00:59:44]} {[%emt 00:00:12]} 29. Rxa5
{[%clk 00:11:45]} {[%emt 00:01:10]} Rxa5 {[%clk 01:00:03]} {[%emt 00:00:11]} 30.
Bxa5 {[%clk 00:12:12]} {[%emt 00:00:03]} Ra6 {[%clk 01:00:26]} {[%emt
00:00:08]} 31. b4 {[%clk 00:12:16]} {[%emt 00:00:25]} Bc3 {[%clk 01:00:42]}
{[%emt 00:00:13]} 32. Rd1+ {[%clk 00:12:07]} {[%emt 00:00:38]} Bd4 {[%clk
00:59:42]} {[%emt 00:01:31]} 33. Ke2 {[%clk 00:12:01]} {[%emt 00:00:36]} Kd6
{[%clk 00:59:14]} {[%emt 00:00:59]} 34. Kd3 {[%clk 00:11:46]} {[%emt 00:00:44]}
g6 {[%clk 00:59:25]} {[%emt 00:00:19]} 35. Rc1 {[%clk 00:08:35]} {[%emt
00:03:40]} Ra8 {[%clk 00:59:12]} {[%emt 00:00:42]} 36. c5+ {[%clk 00:08:20]}
{[%emt 00:00:46]} Kc6 {[%clk 00:57:23]} {[%emt 00:02:19]} 37. Kc4 {[%clk
00:08:45]} {[%emt 00:00:06]} Be3 {[%clk 00:56:12]} {[%emt 00:01:41]} 38. Rc2
{[%clk 00:08:21]} {[%emt 00:00:53]} Rh8 {[%clk 00:56:17]} {[%emt 00:00:25]} 39.
h3 {[%clk 00:08:44]} {[%emt 00:00:07]} Rh4+ {[%clk 00:56:39]} {[%emt 00:00:09]}
40. Kb3 {[%clk 00:05:52]} {[%emt 00:03:23]} Rd4 {[%clk 00:56:56]} {[%emt
00:00:12]} 41. Rc4 {[%clk 00:02:05]} {[%emt 00:04:17]} Rd1 {[%clk 00:57:14]}
{[%emt 00:00:12]} 42. Rc2 {[%clk 00:02:20]} {[%emt 00:00:15]} Rd4 {[%clk
00:57:02]} {[%emt 00:00:41]} 43. Rc3 {[%clk 00:01:46]} {[%emt 00:01:04]} Bd2
{[%clk 00:57:14]} {[%emt 00:00:18]} 44. Rc4 {[%clk 00:02:11]} {[%emt 00:00:05]}
Kb5 {[%clk 00:50:53]} {[%emt 00:06:51]} 45. Rxd4 {[%clk 00:01:51]} {[%emt
00:00:50]} exd4 {[%clk 00:51:19]} {[%emt 00:00:03]} 46. Kc2 {[%clk 00:01:51]}
{[%emt 00:00:31]} Bc3 {[%clk 00:50:09]} {[%emt 00:01:40]} 47. Kd3 {[%clk
00:02:16]} {[%emt 00:00:05]} f5 {[%clk 00:50:31]} {[%emt 00:00:09]} 48. g4
{[%clk 00:01:27]} {[%emt 00:01:18]} Bb2 {[%clk 00:50:36]} {[%emt 00:00:25]} 49.
Bd8 {[%clk 00:01:26]} {[%emt 00:00:31]} Bc3 {[%clk 00:50:48]} {[%emt 00:00:18]}
50. Be7 {[%clk 00:01:22]} {[%emt 00:00:31]} fxg4 {[%clk 00:50:45]} {[%emt
00:00:35]} 51. fxg4 {[%clk 00:01:40]} {[%emt 00:00:12]} Bxb4 {[%clk 00:49:36]}
{[%emt 00:01:40]} 52. Kxd4 {[%clk 00:01:33]} {[%emt 00:00:37]} Kc6 {[%clk
00:50:05]} {[%emt 00:00:01]} 53. Ke5 {[%clk 00:01:40]} {[%emt 00:00:23]} Kd7
{[%clk 00:50:27]} {[%emt 00:00:08]} 54. Kf6 {[%clk 00:01:37]} {[%emt 00:00:30]}
Bd2 {[%clk 00:50:24]} {[%emt 00:00:35]} 55. Bd6 {[%clk 00:01:55]} {[%emt
00:00:12]} Be3 {[%clk 00:50:34]} {[%emt 00:00:20]} 56. Kxg6 {[%clk 00:00:58]}
{[%emt 00:01:26]} Ke6 {[%clk 00:50:57]} {[%emt 00:00:07]} 57. Bg3 {[%clk
00:01:22]} {[%emt 00:00:05]} Bxc5 {[%clk 00:51:10]} {[%emt 00:00:18]} 58. Kxg5
{[%clk 00:01:47]} {[%emt 00:00:04]} Kf7 {[%clk 00:51:30]} {[%emt 00:00:09]} 59.
Be5 {[%clk 00:02:08]} {[%emt 00:00:09]} Be3+ {[%clk 00:51:42]} {[%emt
00:00:19]} 60. Kf5 {[%clk 00:02:22]} {[%emt 00:00:17]} Bf2 {[%clk 00:49:53]}
{[%emt 00:02:19]} 61. Bf6 {[%clk 00:02:37]} {[%emt 00:00:14]} Bc5 {[%clk
00:49:03]} {[%emt 00:01:21]} 62. h4 {[%clk 00:02:53]} {[%emt 00:00:13]} Bf8
{[%clk 00:49:18]} {[%emt 00:00:15]} 63. h5 {[%clk 00:03:00]} {[%emt 00:00:23]}
Kg8 {[%clk 00:48:42]} {[%emt 00:01:07]} 64. Kg6 {[%clk 00:03:20]} {[%emt
00:00:10]} Bg7 {[%clk 00:48:56]} {[%emt 00:00:16]} 65. h6 {[%emt 00:01:36]}
Bxf6 {[%clk 00:49:03]} {[%emt 00:00:09]} 66. Kxf6 {[%clk 00:02:54]} {[%emt
00:00:05]} Kh7 {[%clk 00:47:59]} {[%emt 00:01:34]} 67. g5 {[%clk 00:03:17]}
{[%emt 00:00:06]} Kh8 {[%clk 00:48:16]} {[%emt 00:00:14]} 68. g6 {[%clk
00:03:43]} {[%emt 00:00:04]} Kg8 {[%clk 00:48:31]} {[%emt 00:00:15]} 69. g7
{[%clk 00:03:57]} {[%emt 00:00:15]} 1-0

[Event "Mistrovství Čech mládeže 2023 - HD16"]
[Site "Harrachov, Czech Republic"]
[Date "2023.10.26"]
[Round "7.12"]
[White "Svoboda, Daniel"]
[Black "Dobsa, Emma"]
[Result "1-0"]
[TimeControl "90m + 30s"]
[WhiteElo "1766"]
[BlackElo "1616"]

1. e4 {[%clk 01:30:58]} {[%emt 00:00:02]} c6 {[%clk 01:30:55]} {[%emt
00:00:06]} 2. d4 {[%clk 01:31:18]} {[%emt 00:00:09]} d5 {[%clk 01:31:19]}
{[%emt 00:00:05]} 3. exd5 {[%clk 01:31:32]} {[%emt 00:00:17]} cxd5 {[%clk
01:31:47]} {[%emt 00:00:02]} 4. Bd3 {[%clk 01:31:54]} {[%emt 00:00:07]} Nc6
{[%clk 01:32:05]} {[%emt 00:00:12]} 5. c3 {[%clk 01:32:19]} {[%emt 00:00:05]}
Qc7 {[%clk 01:32:30]} {[%emt 00:00:06]} 6. h3 {[%clk 01:32:38]} {[%emt
00:00:10]} Nf6 {[%clk 01:32:55]} {[%emt 00:00:05]} 7. Nf3 {[%clk 01:32:54]}
{[%emt 00:00:14]} g6 {[%clk 01:33:20]} {[%emt 00:00:05]} 8. O-O {[%clk
01:32:10]} {[%emt 00:01:14]} Bf5 {[%clk 01:33:44]} {[%emt 00:00:06]} 9. Bxf5
{[%clk 01:32:26]} {[%emt 00:00:15]} gxf5 {[%clk 01:34:07]} {[%emt 00:00:07]} 10.
c4 {[%clk 01:32:34]} {[%emt 00:00:22]} dxc4 {[%clk 01:33:21]} {[%emt 00:01:16]}
11. Qc2 {[%clk 01:24:46]} {[%emt 00:08:17]} e6 {[%clk 01:31:21]} {[%emt
00:02:31]} 12. Qxc4 {[%clk 01:24:34]} {[%emt 00:00:41]} Nd5 {[%clk 01:31:46]}
{[%emt 00:00:05]} 13. Nc3 {[%clk 01:18:21]} {[%emt 00:06:43]} Rd8 {[%clk
01:31:20]} {[%emt 00:00:56]} 14. Bg5 {[%clk 01:03:32]} {[%emt 00:15:18]} Be7
{[%clk 01:27:35]} {[%emt 00:04:16]} 15. Rfe1 {[%clk 00:49:29]} {[%emt
00:14:33]} Bxg5 {[%clk 01:17:34]} {[%emt 00:10:31]} 16. Nxg5 {[%clk 00:33:26]}
{[%emt 00:16:33]} O-O {[%clk 01:16:20]} {[%emt 00:01:43]} 17. Rad1 {[%clk
00:13:31]} {[%emt 00:20:25]} Qd7 {[%clk 01:11:28]} {[%emt 00:05:22]} 18. Qe2
{[%clk 00:08:58]} {[%emt 00:05:04]} h6 {[%clk 01:09:22]} {[%emt 00:02:36]} 19.
Qh5 {[%clk 00:05:49]} {[%emt 00:03:39]} Kg7 {[%clk 01:07:49]} {[%emt 00:02:03]}
20. Nxd5 {[%clk 00:05:04]} {[%emt 00:01:15]} Qxd5 {[%clk 01:07:20]} {[%emt
00:00:59]} 21. Nf3 {[%clk 00:04:09]} {[%emt 00:01:25]} Rg8 {[%clk 00:54:02]}
{[%emt 00:13:47]} 22. Ne5 {[%clk 00:02:45]} {[%emt 00:01:54]} Rdf8 {[%clk
00:53:50]} {[%emt 00:00:42]} 23. Rd3 {[%clk 00:02:10]} {[%emt 00:01:05]} Kh7
{[%clk 00:51:23]} {[%emt 00:02:58]} 24. Nf3 {[%clk 00:01:06]} {[%emt 00:01:34]}
Rg7 {[%clk 00:47:27]} {[%emt 00:04:26]} 25. a3 {[%clk 00:00:51]} {[%emt
00:00:45]} Rfg8 {[%clk 00:47:22]} {[%emt 00:00:34]} 26. g3 {[%clk 00:01:12]}
{[%emt 00:00:09]} Qd6 {[%clk 00:44:56]} {[%emt 00:02:56]} 27. Ne5 {[%clk
00:01:03]} {[%emt 00:00:40]} Nxe5 {[%clk 00:41:52]} {[%emt 00:03:34]} 28. Rxe5
{[%clk 00:01:24]} {[%emt 00:00:08]} f4 {[%clk 00:37:57]} {[%emt 00:04:24]} 29.
g4 {[%clk 00:00:42]} {[%emt 00:01:12]} Qc6 {[%clk 00:23:41]} {[%emt 00:14:47]}
30. d5 {[%clk 00:00:44]} {[%emt 00:00:28]} Qc1+ {[%clk 00:22:29]} {[%emt
00:01:42]} 31. Kg2 {[%clk 00:01:09]} {[%emt 00:00:05]} f5 {[%clk 00:16:24]}
{[%emt 00:06:35]} 32. Rxe6 {[%clk 00:00:36]} {[%emt 00:01:03]} fxg4 {[%clk
00:15:31]} {[%emt 00:01:22]} 33. Qxh6# {[%clk 00:00:58]} {[%emt 00:00:07]} 1-0